Cogmind - Beta 13 X1 @@@ ROGUE MODE // 2023.10.12 @ 21:27:12 Player: LU-1G1 Result: Destroyed by S-27 Virus with Autogun Performance ------------- Evolutions (5) 2500 Regions Visited (16) 3200 Robots Destroyed (63) 315 Value Destroyed (1619) 1619 Prototype IDs (14) 280 Alien Tech Used (0) 0 Bonus (927) 927 TOTAL SCORE: 8841 Bonus ------- Follower Combat Kills 586 Met Data Miner 300 Met Imprinter 300 Was Imprinted 300 Friendly Fire -559 Cogmind --------- Core Integrity 0/1000 Matter 300/300 Energy 98/100 System Corruption 3% Temperature Cool (0) Movement Core (50) Location -5/Upper Caves Parts ------- > --- POWER (2) -------- (None) > --- PROPULSION (6) --- (None) > --- UTILITY (7) ------ Improved Signal Interpreter Advanced Signal Interpreter > --- WEAPON (2) ------- (None) > --- INVENTORY (5) ---- Micro Fission Core Large Storage Unit Medium Matter Pod (100) Makeshift Kinetic Plating Advanced Plasma Cannon Peak State ------------ > --- POWER ------------ Micro Nuclear Core > --- PROPULSION ------- VTOL Module VTOL Module VTOL Module Improved Surge Thruster Improved Surge Thruster Field Propulsion Drive > --- UTILITY ---------- Advanced Heat Sink Zionite Biocell Advanced Weight Redist. System Improved Sensor Array Advanced Signal Interpreter Improved Utility Shielding Hardened Light Armor Plating > --- WEAPON ----------- Heavy Proton Missile Launcher Force Lance > --- INVENTORY -------- Micro Fission Core Improved Surge Thruster Medium Matter Pod Improved Signal Interpreter Advanced Plasma Cannon [Rating: 69] Favorites ----------- Power Micro Nuclear Core Engine Improved Deuterium Engine Power Core Micro Nuclear Core Propulsion VTOL Module Treads Light Treads Leg Armored Leg Wheel Compact Wheel Hover Unit Airjet Flight Unit VTOL Module Utility Hacking Suite Device Weight Redist. System Storage Energy Well Processor Advanced Signal Interpreter Hackware Hacking Suite Protection Improved Medium Armor Plating Weapon Greatsword Energy Gun Small Laser Ballistic Gun Assault Rifle Launcher Improved Grenade Launcher Special Weapon Remote Datajack Impact Weapon Mace Slashing Weapon Greatsword Piercing Weapon Force Lance Special Melee Weapon Improved Datajack Build | -11 -10 -10 -8 -7 -7 -7 -7 -6 -6 -6 -6 -6 -5 -5 -5 -5 ------- Run | Jun Mat Sub Mat Fac Low Low Dat Pro Fac Low Low Zio Pro Fac Upp Upp Slots Evolved 10 | . . . 4 2 . . . . 2 . . . . 2 . . Power 1 | . . . . . . . . . 1 . . . . . . . Propulsion 4 | . . . 2 1 . . . . 1 . . . . . . . Utility 5 | . . . 2 1 . . . . . . . . . 2 . . Weapon . | . . . . . . . . . . . . . . . . . Parts Attached 134 | 7 1 1 29 11 7 3 . 1 7 13 15 3 1 33 2 . Power 15 | 1 . . 4 . 1 . . 1 . 2 . . 1 5 . . Engine 9 | 1 . . 3 . . . . 1 . 2 . . 1 1 . . Core 6 | . . . 1 . 1 . . . . . . . . 4 . . Reactor . | . . . . . . . . . . . . . . . . . Propulsion 40 | 2 . . 9 4 1 1 . . 4 2 6 . . 10 1 . Treads 5 | 2 . . 2 . . . . . . . 1 . . . . . Leg 2 | . . . . . . . . . . 2 . . . . . . Wheel 3 | . . . 1 . . . . . . . 1 . . 1 . . Hover 10 | . . . 3 3 . . . . 4 . . . . . . . Flight 20 | . . . 3 1 1 1 . . . . 4 . . 9 1 . Utility 49 | 2 1 . 5 5 3 2 . . 1 6 6 3 . 14 1 . Device 12 | 1 . . 3 . 1 . . . . 1 2 1 . 3 . . Storage 8 | 1 1 . . 1 . . . . . 1 2 . . 2 . . Processor 5 | . . . 1 . . . . . . 2 . 1 . . 1 . Hackware 3 | . . . . 2 . . . . 1 . . . . . . . Protection 21 | . . . 1 2 2 2 . . . 2 2 1 . 9 . . Artifact . | . . . . . . . . . . . . . . . . . Weapon 30 | 2 . 1 11 2 2 . . . 2 3 3 . . 4 . . Energy Gun 3 | 1 . . 1 . . . . . 1 . . . . . . . Energy Cannon . | . . . . . . . . . . . . . . . . . Ballistic Gun 14 | 1 . 1 9 . . . . . . 2 1 . . . . . Ballistic Cannon . | . . . . . . . . . . . . . . . . . Launcher 3 | . . . . . 1 . . . . . . . . 2 . . Special Weapon 1 | . . . . 1 . . . . . . . . . . . . Impact Weapon 1 | . . . . . . . . . . . . . . 1 . . Slashing Weapon 6 | . . . . 1 1 . . . 1 1 2 . . . . . Piercing Weapon 1 | . . . . . . . . . . . . . . 1 . . Special Melee Weapon 1 | . . . 1 . . . . . . . . . . . . . Unidentified Prototypes 6 | . . . 2 . . . . . 1 . . . . 3 . . Parts Lost 66 | . . . 18 3 3 . . 3 2 8 7 . . 21 1 . Power 5 | . . . 1 . . . . 1 . 1 . . . 2 . . Propulsion 31 | . . . 6 2 3 . . 1 1 4 3 . . 10 1 . Utility 18 | . . . 5 1 . . . . 1 3 2 . . 6 . . Weapon 12 | . . . 6 . . . . 1 . . 2 . . 3 . . Highest Loss Streak 15 | . . . 5 2 2 . . 2 2 7 2 . . 15 1 . To Critical Strikes 1 | . . . . . . . . . . . 1 . . . . . Average Slot Usage (%) 69 | . 100 100 64 41 77 83 84 81 70 68 70 55 64 80 11 11 Engine 3 | . 14 14 6 . . . . 1 5 2 5 . 4 . . . Core 2 | . . . . . 6 7 7 5 1 10 . . . 4 . . Treads 4 | . 28 28 15 . . . . . . . 3 . . . . . Leg 1 | . . . . . . . . . . 4 10 . . . . . Hover 4 | . . . 3 2 20 15 15 15 19 9 . . . . . . Flight 12 | . . . 2 18 7 14 15 13 6 2 13 20 20 28 3 . Device 8 | . 14 14 9 . 4 7 7 7 . 1 2 13 13 12 . . Storage 6 | . 14 14 7 2 7 7 7 7 6 6 8 6 6 4 . . Processor 3 | . . . 1 1 . . . . . 2 6 6 6 5 7 11 Hackware 3 | . . . . 6 15 15 15 15 19 5 . . . . . . Protection 5 | . . . 2 2 6 6 7 7 6 7 7 2 6 11 . . Energy Gun 1 | . 14 14 1 . . . . . 1 3 . . . . . . Ballistic Gun 3 | . 14 14 13 . . . . . . . 7 . . . . . Slashing Weapon 3 | . . . . . 6 7 7 6 2 7 . 6 6 . . . Naked Turns 49 | . . . 49 . . . . . . . . . . . . . Heaviest Build 56 | 14 29 31 37 11 24 21 21 21 26 55 56 18 28 37 20 . Greatest Support 80 | 40 40 40 80 16 24 22 22 22 38 36 36 18 18 38 6 3 Greatest Overweight (x) 11 | 3 . . 10 . 3 1 . . 2 6 3 3 1 11 6 . Average Overweight (x) . | . . . . . . . . . . . . . . . . . Largest Inventory Capacity 15 | 8 15 15 15 8 8 8 8 8 8 15 15 5 5 15 15 5 Average Capacity 8 | 7 11 15 12 6 8 8 8 8 8 10 14 5 5 5 5 5 Most Carried 15 | 8 7 8 14 8 8 8 8 8 8 15 15 5 5 5 5 5 Average Carried 7 | 5 6 7 9 6 7 7 7 7 7 9 13 4 4 4 4 5 Final Capacity 15 | 8 15 15 5 8 8 8 8 8 8 15 5 5 5 15 5 5 Final Carried 15 | 6 7 8 5 8 8 8 8 7 8 15 5 5 5 5 5 5 Class Distribution -------------------- 30% | Mutant 24% | Hacker-Mutant 18% | Derelict-Mutant 11% | Derelict-Sprinter 7% | Scavenger-Mutant 4% | Scavenger-Sprinter Dominant Class ---------------- Mutant | -10/Materials Mutant | -10/Subcaves Mutant | -8/Materials Hacker-Mutant | -7/Factory Hacker-Mutant | -7/Lower Caves Hacker-Mutant | -7/Lower Caves Hacker-Mutant | -7/Data Miner Hacker-Mutant | -6/Proximity Caves Hacker-Mutant | -6/Factory Hacker-Mutant | -6/Lower Caves Derelict-Mutant | -6/Lower Caves Mutant | -6/Zion Derelict-Mutant | -5/Proximity Caves Scavenger-Sprinter | -5/Factory Mutant | -5/Upper Caves Mutant | -5/Upper Caves Resources | -11 -10 -10 -8 -7 -7 -7 -7 -6 -6 -6 -6 -6 -5 -5 -5 -5 ----------- Run | Jun Mat Sub Mat Fac Low Low Dat Pro Fac Low Low Zio Pro Fac Upp Upp Matter Collected 2348 | 297 . 32 773 . 191 30 . 1 20 188 324 60 10 407 15 . Remotely . | . . . . . . . . . . . . . . . . . Salvage Created 2621 | 168 . 42 960 . 121 81 62 . . 74 236 . . 877 . . Parts 115 | 14 . 1 41 . 9 3 3 . . 3 11 . . 30 . . Haulers Intercepted 3 | . . . 2 . . . . . . . . . . 1 . . Recyclers Shooed 3 | . . . 2 . . . . . . . . . . 1 . . Parts Field Recycled . | . . . . . . . . . . . . . . . . . Retrieved Matter . | . . . . . . . . . . . . . . . . . Parts Self-Destructed 46 | . . 8 . . 10 8 . 10 . 3 6 . 1 . . . Prevented 1 | . . . . . . . . . . . . . 1 . . . Kills | -11 -10 -10 -8 -7 -7 -7 -7 -6 -6 -6 -6 -6 -5 -5 -5 -5 ------- Run | Jun Mat Sub Mat Fac Low Low Dat Pro Fac Low Low Zio Pro Fac Upp Upp Combat Hostiles Destroyed 41 | . . 1 15 . 4 2 . . . 3 7 . . 9 . . Melee 10 | . . . . . 1 2 . . . 3 . . . 4 . . Guns 23 | . . 1 15 . . . . . . . 7 . . . . . AOE 7 | . . . . . 3 . . . . . . . . 4 . . Classes Destroyed 13 | 2 . 1 6 . . . . . . . 1 . . 3 . . Worker 3 | . . . 1 . . . . . . . . . . 2 . . Builder 1 | . . . 1 . . . . . . . . . . . . . Tunneler 4 | 4 . . . . . . . . . . . . . . . . Hauler 3 | . . . 2 . . . . . . . . . . 1 . . Recycler 7 | 1 . . 2 . . . . . . . . . . 4 . . Mechanic 1 | . . . 1 . . . . . . . . . . . . . Operator 1 | . . . . . . . . . . . . . . 1 . . Swarmer 21 | . . . 3 . 3 . . . . 3 7 . . 5 . . Cutter 2 | . . . . . . . . . . . . . . 2 . . Grunt 11 | . . 1 7 . 1 2 . . . . . . . . . . Sentry 5 | . . . 5 . . . . . . . . . . . . . Programmer 2 | . . . . . . . . . . . . . . 2 . . Decomposer 1 | . . . . . 1 . . . . . . . . . . . Thug 1 | . . . . . . . 1 . . . . . . . . . Mutant 1 | . . . . . . . . . . . 1 . . . . . Best Kill Streak 7 | 2 . 1 3 . 3 2 . . . 3 4 . . 7 . . Combat Bots Only 5 | . . 1 2 . 3 2 . . . 3 4 . . 5 . . Max Kills in Single Turn 2 | 1 . 1 1 . 2 1 1 . . 1 1 . . 2 . . Gunslinging . | . . . . . . . . . . . . . . . . . Exploded 2 | . . . . . 2 . . . . . . . . 2 . . Melee 1 | . . . . . 1 1 . . . 1 . . . 1 . . Uniques/NPCs Destroyed . | . . . . . . . . . . . . . . . . . Combat | -11 -10 -10 -8 -7 -7 -7 -7 -6 -6 -6 -6 -6 -5 -5 -5 -5 -------- Run | Jun Mat Sub Mat Fac Low Low Dat Pro Fac Low Low Zio Pro Fac Upp Upp Damage Taken 8330 | . . 50 2273 328 275 28 . 315 86 875 989 . 177 2459 346 129 Core 1976 | . . 17 419 107 83 . . 35 . 161 96 . 49 660 220 129 Absorbed by Shields 202 | . . . . . . . . . . 92 110 . . . . . Redirected to Shielding 103 | . . . . . . . . . . . . . . 103 . . Regen/Repaired (Parts) 172 | . . . . . . . . . . . . 172 . . . . Core Remaining (%) 69 | 100 . 93 23 . . . . 67 . . . . 64 . . . Volleys Fired 176 | 9 . 4 117 . 2 . . . . 1 39 . . 4 . . Largest 2 | 2 . 2 2 . 1 . . . . 1 2 . . 1 . . Hottest 80 | 60 . 60 70 . 36 . . . . 80 46 . . 36 . . Shots Fired 286 | 18 . 8 202 . 2 . . . . 1 51 . . 4 . . Gun 280 | 18 . 8 202 . . . . . . 1 51 . . . . . Cannon . | . . . . . . . . . . . . . . . . . Launcher 6 | . . . . . 2 . . . . . . . . 4 . . Special . | . . . . . . . . . . . . . . . . . Kinetic 258 | 9 . 4 194 . . . . . . . 51 . . . . . Thermal 22 | 9 . 4 8 . . . . . . 1 . . . . . . Explosive 6 | . . . . . 2 . . . . . . . . 4 . . Electromagnetic . | . . . . . . . . . . . . . . . . . Robot Hit Streak 23 | 2 . 6 16 . 6 . . . . 7 23 . . 2 . . Robot Miss Streak 4 | 1 . 1 3 . . . . . . . 4 . . . . . Penetration Max . | . . . . . . . . . . . . . . . . . Secondary Targets 1 | . . . . . . . . . . . 1 . . . . . Max Gunslinging Chain 1 | . . . . . . . . . . . 1 . . . . . Shots Hit Robots 246 | 9 . 6 145 . 6 4 1 1 . 10 36 . 2 26 . . Core Hits 97 | 6 . 1 51 . 4 1 1 1 . 2 15 . . 15 . . Critical Kills . | . . . . . . . . . . . . . . . . . Critical Parts Destroyed 2 | . . . 1 . . . . . . . . . . 1 . . Critical Strikes 10 | . . . 1 . . . . . . 3 . . . 6 . . Destroy 1 | . . . 1 . . . . . . . . . . . . . Smash 1 | . . . . . . . . . . . . . . 1 . . Sever 3 | . . . . . . . . . . 3 . . . . . . Impale 5 | . . . . . . . . . . . . . . 5 . . Melee Attacks 108 | . . . . 1 5 5 1 7 1 18 1 1 17 51 . . Impact 6 | . . . . . . . . . . . . . . 6 . . Slashing 61 | . . . . 1 5 5 1 7 1 18 1 1 17 4 . . Piercing 41 | . . . . . . . . . . . . . . 41 . . Sneak Attacks 8 | . . . . . 1 . 1 . . . . . . 6 . . Combat Hostiles . | . . . . . . . . . . . . . . . . . Follow-up Attacks 5 | . . . . . . . . . . 2 . . . 3 . . Damage Inflicted 5781 | 106 . 64 1964 . 533 217 124 49 . 377 576 . 111 1660 . . Guns 2692 | 106 . 64 1922 . . . . . . 24 576 . . . . . Cannons . | . . . . . . . . . . . . . . . . . Explosions 647 | . . . . . 281 . . . . . . . . 366 . . Melee 2396 | . . . . . 252 217 124 45 . 353 . . 111 1294 . . Ramming 46 | . . . 42 . . . . 4 . . . . . . . . Kinetic 2517 | 73 . 34 1834 . . . . . . . 576 . . . . . Thermal 175 | 33 . 30 88 . . . . . . 24 . . . . . . Explosive 647 | . . . . . 281 . . . . . . . . 366 . . Electromagnetic . | . . . . . . . . . . . . . . . . . Impact 102 | . . . . . . . . . . . . . . 102 . . Slashing 1516 | . . . . . 252 217 124 45 . 353 . . 111 414 . . Piercing 778 | . . . . . . . . . . . . . . 778 . . Highest Corruption 3 | . . . . . . . . . 1 1 1 1 . 3 3 3 Average Corruption 1 | . . . . . . . . . 1 1 1 1 . 2 3 3 Corruption Purged . | . . . . . . . . . . . . . . . . . Corruption Blocked . | . . . . . . . . . . . . . . . . . Effects 21 | . . . . . . . . . 1 5 3 . . 10 2 . Message Errors 4 | . . . . . . . . . . 2 . . . 2 . . Matter Fused 5 | . . . . . . . . . 1 1 1 . . 2 . . Heat Flow Errors 3 | . . . . . . . . . . . . . . 3 . . Energy Discharges 4 | . . . . . . . . . . 1 1 . . 1 1 . Parts Rejected 1 | . . . . . . . . . . . . . . 1 . . Data Loss (minor) 2 | . . . . . . . . . . . 1 . . . 1 . Data Loss (major) 2 | . . . . . . . . . . 1 . . . 1 . . Overload Shots . | . . . . . . . . . . . . . . . . . Overflow Damage 411 | . . . . . 123 43 . . . 19 . . 36 190 . . Projectiles . | . . . . . . . . . . . . . . . . . Explosions 9 | . . . . . 9 . . . . . . . . . . . Melee 402 | . . . . . 114 43 . . . 19 . . 36 190 . . Knockbacks 1 | . . . . . . . . . . . . . . 1 . . Impact 1 | . . . . . . . . . . . . . . 1 . . Kinetic . | . . . . . . . . . . . . . . . . . Secondary . | . . . . . . . . . . . . . . . . . Self-Inflicted Damage 104 | . . . 8 . 94 . . 2 . . . . . . . . Shots 2 | . . . . . 2 . . . . . . . . . . . Rammed 5 | . . . 4 . . . . 1 . . . . . . . . Targets Rammed 6 | . . . 5 . . . . 1 . . . . . . . . Kicked . | . . . . . . . . . . . . . . . . . Crushed 1 | . . . 1 . . . . . . . . . . . . . Highest Temperature 195 | . . . 38 . 1 . . 8 . 42 6 . . 195 . . Average Temperature 25 | . . . 9 . 1 . . 8 . 24 3 . . 57 . . Received Heat Transfer 1608 | . . 27 1161 114 20 . . 75 . 18 94 . 36 36 27 . Siege Activations . | . . . . . . . . . . . . . . . . . Robots Corrupted . | . . . . . . . . . . . . . . . . . Combat Hostiles . | . . . . . . . . . . . . . . . . . Parts Fried 2 | . . . . . . . . . . . . . . 2 . . Impact Corruptions 4 | . . . . . . . . . . . . . . 4 . . Robots Melted . | . . . . . . . . . . . . . . . . . Combat Hostiles . | . . . . . . . . . . . . . . . . . Parts Melted . | . . . . . . . . . . . . . . . . . Heat Transferred 387 | 75 . 75 200 . . . . . . 37 . . . . . . Parts Sabotaged . | . . . . . . . . . . . . . . . . . Parts Stolen . | . . . . . . . . . . . . . . . . . Parts Stripped . | . . . . . . . . . . . . . . . . . Power Chain Reactions . | . . . . . . . . . . . . . . . . . Missiles Intercepted . | . . . . . . . . . . . . . . . . . Alert | -11 -10 -10 -8 -7 -7 -7 -7 -6 -6 -6 -6 -6 -5 -5 -5 -5 ------- Run | Jun Mat Sub Mat Fac Low Low Dat Pro Fac Low Low Zio Pro Fac Upp Upp Peak Influence 756 | 25 16 . 372 126 . . . . 756 . . . . 430 . . Initial 628 | . 16 . 19 65 . . . . 628 . . . . . . . Average 200 | 11 16 . 207 42 . . . . 691 . . . . 158 . . Maximum Alert Level 3 | . . . 1 . . . . . 3 . . . . 2 . . Low Security (%) 56 | 100 100 . 39 100 . . . . . . . . . 65 . . Level 1 31 | . . . 60 . . . . . . . . . . 24 . . Level 2 5 | . . . . . . . . . 31 . . . . 9 . . Level 3 6 | . . . . . . . . . 68 . . . . . . . Level 4 . | . . . . . . . . . . . . . . . . . Level 5 . | . . . . . . . . . . . . . . . . . High Security . | . . . . . . . . . . . . . . . . . Max Security . | . . . . . . . . . . . . . . . . . Squads Dispatched 12 | . . . 2 2 . . . . 2 . 1 . . 5 . . Investigation 3 | . . . . 2 . . . . 1 . . . . . . . Extermination 1 | . . . . . . . . . . . . . . 1 . . Reinforcement 6 | . . . 1 . . . . . 1 . . . . 4 . . Assault 1 | . . . . . . . . . . . 1 . . . . . Garrison 1 | . . . 1 . . . . . . . . . . . . . Intercept . | . . . . . . . . . . . . . . . . . Searches Triggered . | . . . . . . . . . . . . . . . . . Construction Impeded . | . . . . . . . . . . . . . . . . . Haulers Reinforced 1 | . . . . . . . . . . . . . . 1 . . Active Scanning Responses . | . . . . . . . . . . . . . . . . . Cargo Convoy Interrupts . | . . . . . . . . . . . . . . . . . Stealth | -11 -10 -10 -8 -7 -7 -7 -7 -6 -6 -6 -6 -6 -5 -5 -5 -5 --------- Run | Jun Mat Sub Mat Fac Low Low Dat Pro Fac Low Low Zio Pro Fac Upp Upp Distress Signals 4 | . . . 4 . . . . . . . . . . . . . Communications Jammed . | . . . . . . . . . . . . . . . . . Distress Signals . | . . . . . . . . . . . . . . . . . Times Spotted 160 | . . 1 41 12 7 6 . 7 7 10 19 . 3 34 8 5 Peak Tracking Total 10 | . . 1 6 6 3 3 . 5 5 4 10 . 2 6 5 5 Tactical Retreats 26 | . . . 6 2 . . . . 1 6 6 . . 4 1 . Traps | -11 -10 -10 -8 -7 -7 -7 -7 -6 -6 -6 -6 -6 -5 -5 -5 -5 ------- Run | Jun Mat Sub Mat Fac Low Low Dat Pro Fac Low Low Zio Pro Fac Upp Upp Traps Triggered 1 | . . . . . . . . . 1 . . . . . . . Indirectly . | . . . . . . . . . . . . . . . . . Trap Hack Attempts . | . . . . . . . . . . . . . . . . . Triggered . | . . . . . . . . . . . . . . . . . Disarmed . | . . . . . . . . . . . . . . . . . Reprogrammed . | . . . . . . . . . . . . . . . . . Reused . | . . . . . . . . . . . . . . . . . Traps Extracted . | . . . . . . . . . . . . . . . . . Installed . | . . . . . . . . . . . . . . . . . Triggered . | . . . . . . . . . . . . . . . . . Machines | -11 -10 -10 -8 -7 -7 -7 -7 -6 -6 -6 -6 -6 -5 -5 -5 -5 ---------- Run | Jun Mat Sub Mat Fac Low Low Dat Pro Fac Low Low Zio Pro Fac Upp Upp Machines Disabled 2 | . . . . . 1 . . . . . 1 . . . . . Max in Single Turn 1 | . . . . . 1 . . . . . 1 . . . . . Garrison Access 1 | . . . . 1 . . . . . . . . . . . . Machines Repaired . | . . . . . . . . . . . . . . . . . Machines Sabotaged . | . . . . . . . . . . . . . . . . . Overloaded Fab Kills . | . . . . . . . . . . . . . . . . . Hacking | -11 -10 -10 -8 -7 -7 -7 -7 -6 -6 -6 -6 -6 -5 -5 -5 -5 --------- Run | Jun Mat Sub Mat Fac Low Low Dat Pro Fac Low Low Zio Pro Fac Upp Upp Machines Accessed 26 | . . 1 4 4 1 . 3 . 8 1 . . . 3 1 . Terminals 13 | . . . 4 3 . . . . 6 . . . . . . . Fabricators 3 | . . . . . . . . . 1 . . . . 2 . . Repair Stations 2 | . . . . . . . . . 1 . . . . 1 . . Recycling Units . | . . . . . . . . . . . . . . . . . Scanalyzers . | . . . . . . . . . . . . . . . . . Garrison Access 1 | . . . . 1 . . . . . . . . . . . . Total Hacks 72 | . . 1 12 9 1 . 22 . 18 1 . . . 7 1 . Successful 46 | . . 1 6 2 1 . 22 . 8 1 . . . 4 1 . Failed 26 | . . . 6 7 . . . . 10 . . . . 3 . . Catastrophic 9 | . . . 2 5 . . . . 1 . . . . 1 . . Database Lockouts . | . . . . . . . . . . . . . . . . . Manual 41 | . . . 7 . . . . . 9 . . . . 25 . . Terminals 32 | . . . 12 7 . . . . 13 . . . . . . . Fabricators 9 | . . . . . . . . . 4 . . . . 5 . . Repair Stations 3 | . . . . . . . . . 1 . . . . 2 . . Recycling Units . | . . . . . . . . . . . . . . . . . Scanalyzers . | . . . . . . . . . . . . . . . . . Garrison Access 2 | . . . . 2 . . . . . . . . . . . . Terminal Hacks 36 | . . 1 5 1 1 . 22 . 4 1 . . . . 1 . Record 7 | . . 1 . . . . 6 . . . . . . . . . Part Schematic 8 | . . . . . . . 8 . . . . . . . . . Robot Schematic 5 | . . . . . . . 5 . . . . . . . . . Robot Analysis 1 | . . . 1 . . . . . . . . . . . . . Prototype ID Bank 3 | . . . . . . . 3 . . . . . . . . . Open Door 3 | . . . . . 1 . . . . 1 . . . . 1 . Open DSF 1 | . . . . . . . . . 1 . . . . . . . Branch Access Points 2 | . . . 1 . . . . . 1 . . . . . . . Unreport Threat 2 | . . . 1 1 . . . . . . . . . . . . Recall Investigation 1 | . . . . . . . . . 1 . . . . . . . Recall Reinforcements 1 | . . . . . . . . . 1 . . . . . . . Hauler Manifests 1 | . . . 1 . . . . . . . . . . . . . Zone Layout 1 | . . . 1 . . . . . . . . . . . . . Fabricator Hacks 4 | . . . . . . . . . 2 . . . . 2 . . Network Status 2 | . . . . . . . . . 1 . . . . 1 . . Build 2 | . . . . . . . . . 1 . . . . 1 . . Repair Station Hacks 3 | . . . . . . . . . 1 . . . . 2 . . Scan Component 1 | . . . . . . . . . . . . . . 1 . . Repair 1 | . . . . . . . . . . . . . . 1 . . Refit 1 | . . . . . . . . . 1 . . . . . . . Recycling Unit Hacks . | . . . . . . . . . . . . . . . . . Scanalyzer . | . . . . . . . . . . . . . . . . . Garrison Access Hacks 1 | . . . . 1 . . . . . . . . . . . . Seal Access 1 | . . . . 1 . . . . . . . . . . . . Unauthorized Hacks 2 | . . . 1 . . . . . 1 . . . . . . . Terminals 2 | . . . 1 . . . . . 1 . . . . . . . Assimilate 1 | . . . . . . . . . 1 . . . . . . . Disrupt 1 | . . . 1 . . . . . . . . . . . . . Fabricators . | . . . . . . . . . . . . . . . . . Repair Stations . | . . . . . . . . . . . . . . . . . Recycling Units . | . . . . . . . . . . . . . . . . . Scanalyzers . | . . . . . . . . . . . . . . . . . Garrison Access . | . . . . . . . . . . . . . . . . . Data Cores Recovered . | . . . . . . . . . . . . . . . . . Used . | . . . . . . . . . . . . . . . . . Hacking Detections 16 | . . . 3 4 . . . . 6 . . . . 3 . . Full Trace Events 4 | . . . 1 2 . . . . 1 . . . . . . . Feedback Events . | . . . . . . . . . . . . . . . . . Feedback Blocked . | . . . . . . . . . . . . . . . . . Robot Schematics Acquired 8 | . . . . . . . 5 . . . . 3 . . . . Robots Built . | . . . . . . . . . . . . . . . . . Authchips . | . . . . . . . . . . . . . . . . . Time 152 | . . . . . . . . . 152 . . . . . . . Total Robot Build Rating . | . . . . . . . . . . . . . . . . . Part Schematics Acquired 21 | . . . . . . . 8 . . . . 13 . . . . Parts Built 1 | . . . . . . . . . . . . . . 1 . . Authchips . | . . . . . . . . . . . . . . . . . Time 58 | . . . . . . . . . . . . . . 58 . . Total Part Build Rating 7 | . . . . . . . . . . . . . . 7 . . Parts Repaired . | . . . . . . . . . . . . . . . . . Time 32 | . . . . . . . . . . . . . . 32 . . Parts Recycled . | . . . . . . . . . . . . . . . . . Recycled Matter . | . . . . . . . . . . . . . . . . . Retrieved Matter . | . . . . . . . . . . . . . . . . . Retrieved Components . | . . . . . . . . . . . . . . . . . Parts Scanalyzed . | . . . . . . . . . . . . . . . . . Part Schematics Acquired . | . . . . . . . . . . . . . . . . . Parts Damaged . | . . . . . . . . . . . . . . . . . Bothacking | -11 -10 -10 -8 -7 -7 -7 -7 -6 -6 -6 -6 -6 -5 -5 -5 -5 ------------ Run | Jun Mat Sub Mat Fac Low Low Dat Pro Fac Low Low Zio Pro Fac Upp Upp Used RIF Installer . | . . . . . . . . . . . . . . . . . Robots Hacked . | . . . . . . . . . . . . . . . . . Non-combat . | . . . . . . . . . . . . . . . . . Combat . | . . . . . . . . . . . . . . . . . Robot Hacks Applied . | . . . . . . . . . . . . . . . . . Relay Couplers Released . | . . . . . . . . . . . . . . . . . Fabnet Peak Effective % . | . . . . . . . . . . . . . . . . . Robots Rewired 4 | . . . . . 4 . . . . . . . . . . . Allies Hacked 2 | . . . . . . . . . . . . . 2 . . . Hacks Repelled . | . . . . . . . . . . . . . . . . . Allies | -11 -10 -10 -8 -7 -7 -7 -7 -6 -6 -6 -6 -6 -5 -5 -5 -5 -------- Run | Jun Mat Sub Mat Fac Low Low Dat Pro Fac Low Low Zio Pro Fac Upp Upp Total Allies 17 | . . . . . 4 . . 1 1 . . 9 . 2 . . Largest Group 9 | . . . . . 4 4 1 1 1 . . 9 9 4 . . Highest-Rated Group 296 | . . . . . 113 113 28 96 26 . . 296 296 170 . . Highest-Rated Ally 96 | . . . . . 31 31 28 96 26 . . 39 39 85 . . Zionite Dispatches 1 | . . . . . . . . . . . . . . 1 . . Heavy 1 | . . . . . . . . . . . . . . 1 . . Total Orders . | . . . . . . . . . . . . . . . . . Ally Attacks 102 | . . . . . . 38 . 14 . . . . 27 23 . . Total Damage 2645 | . . . . . . 529 . 369 . . . . 914 833 . . Kills 20 | . . . . . . 5 . 3 . . . . 4 8 . . Allies Corrupted 2 | . . . . . . . . . . 1 . . 1 . . . Allies Melted . | . . . . . . . . . . . . . . . . . Intel | -11 -10 -10 -8 -7 -7 -7 -7 -6 -6 -6 -6 -6 -5 -5 -5 -5 ------- Run | Jun Mat Sub Mat Fac Low Low Dat Pro Fac Low Low Zio Pro Fac Upp Upp Robot Analysis Total 1 | . . . 1 . . . . . . . . . . . . . Derelict Logs Recovered 6 | . . . . . . 1 . 1 . 1 1 . 1 . 1 . Drone Launches . | . . . . . . . . . . . . . . . . . Drone Recoveries . | . . . . . . . . . . . . . . . . . Zionite Intel Received 5 | . . . . . . . . . . . . . . 5 . . Branch Access 1 | . . . . . . . . . . . . . . 1 . . Emergency Access 1 | . . . . . . . . . . . . . . 1 . . Active Terminals 1 | . . . . . . . . . . . . . . 1 . . Active Garrisons 1 | . . . . . . . . . . . . . . 1 . . Depthwide Sectors/-1 1 | . . . . . . . . . . . . . . 1 . . Exploration | -11 -10 -10 -8 -7 -7 -7 -7 -6 -6 -6 -6 -6 -5 -5 -5 -5 ------------- Run | Jun Mat Sub Mat Fac Low Low Dat Pro Fac Low Low Zio Pro Fac Upp Upp Turns Passed 6715 | 224 106 349 1002 177 431 394 72 212 229 465 436 1165 655 700 90 8 Spaces Moved 6841 | 89 66 205 625 393 595 597 118 307 382 430 300 1083 555 885 195 16 Core 280 | 17 . . 94 . 6 . . . . 11 . 11 . 4 121 16 Treads 543 | 72 66 205 199 . . . . . . . 1 . . . . . Legs 194 | . . . . . . . . . . 75 119 . . . . . Wheels 169 | . . . 85 . . . . . . . 79 . . 5 . . Hover 2340 | . . . 2 2 589 596 118 307 382 344 . . . . . . Flight 3315 | . . . 245 391 . 1 . . . . 101 1072 555 876 74 . Fastest Speed 20 | 50 160 160 32 34 52 56 56 56 52 58 29 29 29 20 27 50 Average Speed 65 | 155 160 160 89 35 55 56 56 56 53 91 107 57 72 29 43 50 Slowest Speed 600 | 200 160 160 550 60 200 115 56 56 240 350 304 200 109 600 350 50 Overloaded Moves 36 | . . . . . . . . . . . . . . . 36 . Propulsion Burnouts . | . . . . . . . . . . . . . . . . . Robots Hopped 14 | . . . 3 7 . . . . . . 3 . . . 1 . Cave-ins Triggered . | . . . . . . . . . . . . . . . . . Exploration Rate (%) 42 | 5 12 16 54 12 69 76 70 50 14 60 51 89 65 25 46 8 Regions Visited 16 Branch Regions 11 Pre-discovered Areas 7 | . . . . . . 1 1 . . . . . . 5 . . Known Exits Taken 5 | . . . . . . . . . 1 . . 1 1 1 1 . Unknown Exits Taken 11 | 1 1 1 1 1 1 1 1 1 . 1 1 . . . . . Scrap Searched 25 | . . . . . 2 5 . 1 . 8 2 4 2 . 1 . Spaces Dug 35 | . . . . 1 . . . 5 1 . . . 14 14 . . Terrain Destroyed 77 | . . . 1 1 23 . . 5 1 . . . 14 32 . . Melee 35 | . . . . 1 . . . 5 1 . . . 14 14 . . Projectile 1 | . . . 1 . . . . . . . . . . . . . AOE 41 | . . . . . 23 . . . . . . . . 18 . . Terrain Rammed . | . . . . . . . . . . . . . . . . . Walls Destroyed . | . . . . . . . . . . . . . . . . . Machines Disabled . | . . . . . . . . . . . . . . . . . Actions | -11 -10 -10 -8 -7 -7 -7 -7 -6 -6 -6 -6 -6 -5 -5 -5 -5 --------- Run | Jun Mat Sub Mat Fac Low Low Dat Pro Fac Low Low Zio Pro Fac Upp Upp Total 8586 | 154 66 218 863 418 684 647 122 332 403 484 371 1620 771 1218 199 16 Wait 1197 | 42 . 9 62 8 57 34 . 17 8 . . 530 197 232 1 . Move 6799 | 88 65 204 618 380 594 596 117 306 381 429 293 1082 554 884 192 16 Hop 12 | . . . 3 5 . . . . . . 3 . . . 1 . Pick Up 68 | 8 . . 18 5 6 4 2 . 2 13 2 3 1 2 2 . Fast Attach 79 | 5 . . 14 9 2 2 . . 4 9 10 . 1 23 . . Attach 30 | 2 . . 7 2 4 1 . 1 2 1 5 1 . 2 2 . Detach 8 | . . . . 2 1 . . . 1 2 1 . . 1 . . Swap 25 | . 1 1 8 . 1 . . . 1 3 . 2 . 8 . . Drop 75 | . . . 11 6 2 5 2 . 3 10 17 1 1 16 1 . Fire 176 | 9 . 4 117 . 2 . . . . 1 39 . . 4 . . Melee 101 | . . . . 1 5 5 1 7 1 16 1 1 17 46 . . Ram 3 | . . . 2 . . . . 1 . . . . . . . . Kick . | . . . . . . . . . . . . . . . . . Crush 3 | . . . 3 . . . . . . . . . . . . . Escape Stasis . | . . . . . . . . . . . . . . . . . Rewire 10 | . . . . . 10 . . . . . . . . . . . Trap . | . . . . . . . . . . . . . . . . . Miscellaneous . | . . . . . . . . . . . . . . . . . Route ------- -11/Junkyard -10/Materials -10/Subcaves -8/Materials -7/Factory -7/Lower Caves -7/Lower Caves (discovered 2 exits: *Fac / *Dat) -7/Data Miner -6/Proximity Caves -6/Factory (discovered 2 exits: *Low x2) -6/Lower Caves -6/Lower Caves (discovered 2 exits: Fac / [*Zio]) -6/Zion -5/Proximity Caves -5/Factory (discovered 5 exits: [*Fac] / *Upp x2 / Ext x2) -5/Upper Caves -5/Upper Caves History --------- Turn | Location | Event 39 | -11/Junkyard | Discovered new exit (range 14) 225 | -11/Junkyard | Entered Materials 317 | -10/Materials | Build established: Mutant 317 | -10/Materials | Discovered new exit (range 6) 331 | -10/Materials | Entered Subcaves 359 | -10/Subcaves | Visited Clippyterm 363 | -10/Subcaves | Learned Factory trap positions 655 | -10/Subcaves | Discovered new exit (range 5) 680 | -10/Subcaves | Entered Materials 680 | -8/Materials | Evolved 4 slots: Propulsion x2, Utility x2 1093 | -8/Materials | Garrison activated, responded to threat 1113 | -8/Materials | Build established: Scavenger-Mutant 1222 | -8/Materials | Lost 5 parts (2n2u1w) 1295 | -8/Materials | Lost 5 parts (2n1u2w) 1466 | -8/Materials | Released all parts (3) 1494 | -8/Materials | Core integrity fell below 50% 1497 | -8/Materials | Lost 3 parts (1u2w) 1584 | -8/Materials | Build established: Mutant 1679 | -8/Materials | Discovered new exit (range 5) 1682 | -8/Materials | Entered Factory 1682 | -7/Factory | Evolved 2 slots: Propulsion x1, Utility x1 1683 | -7/Factory | Loaded intel: 109 trap records 1689 | -7/Factory | Lost 4 parts (2n1u1w) 1857 | -7/Factory | Discovered new exit (range 6) 1859 | -7/Factory | Entered Lower Caves 2059 | -7/Lower Caves | Build established: Hacker-Mutant 2082 | -7/Lower Caves | Encountered a Warlord checkpoint 2087 | -7/Lower Caves | Discovered new exit (range 12) 2154 | -7/Lower Caves | Attacked by a delusional Derelict stockpiling Unaware 2290 | -7/Lower Caves | Entered another Lower Caves area 2290 | -7/Lower Caves | Accompanied by 4 allies 2318 | -7/Lower Caves | Discovered new exit (range 11) 2350 | -7/Lower Caves | Learned location of Zion (-6) 2633 | -7/Lower Caves | Discovered new exit (range 6) 2684 | -7/Lower Caves | Entered Data Miner 2684 | -7/Data Miner | Accompanied by 1 ally 2684 | -7/Data Miner | Discovered new exit (range 6) 2719 | -7/Data Miner | Met Data Miner 2733 | -7/Data Miner | Learned location of Section 7 (-3) 2733 | -7/Data Miner | Acquired the access code to Warlord's prototype stash 2739 | -7/Data Miner | Received God Mode back door access code from Data Miner 2756 | -7/Data Miner | Entered Proximity Caves 2794 | -6/Proximity Caves | Attracted the attention of an 0b10 checkpoint 2795 | -6/Proximity Caves | Escorted by Enhanced Grunt 2844 | -6/Proximity Caves | Spotter reported a threat 2869 | -6/Proximity Caves | Spotter reported a threat 2871 | -6/Proximity Caves | Learned 4 Factory zone layouts 2922 | -6/Proximity Caves | Spotter reported a threat 2948 | -6/Proximity Caves | Spotter reported a threat 2959 | -6/Proximity Caves | Discovered new exit (range 14) 2968 | -6/Proximity Caves | Entered Factory 2968 | -6/Factory | Evolved 2 slots: Power x1, Propulsion x1 3044 | -6/Factory | Identified exit to Lower Caves 3197 | -6/Factory | Entered Lower Caves 3197 | -6/Lower Caves | Accompanied by 1 ally 3306 | -6/Lower Caves | Encountered a Warlord checkpoint 3313 | -6/Lower Caves | Learned Factory garrison access intel 3389 | -6/Lower Caves | Discovered new exit (range 12) 3462 | -6/Lower Caves | Lost 7 parts (4n3u) 3662 | -6/Lower Caves | Entered another Lower Caves area 3664 | -6/Lower Caves | Identified exit to Factory 3737 | -6/Lower Caves | Spotted B-75 Beast 3762 | -6/Lower Caves | Build established: Derelict-Mutant 3777 | -6/Lower Caves | Encountered a Warlord checkpoint 4049 | -6/Lower Caves | Attracted the attention of an 0b10 outpost 4087 | -6/Lower Caves | Attacked by a delusional Derelict stockpiling parts 4093 | -6/Lower Caves | Discovered new exit (range 15) 4098 | -6/Lower Caves | Entered Zion 4108 | -6/Zion | System corruption cleaned by Quarantine Array 4119 | -6/Zion | Discovered new exit (range 10) 4121 | -6/Zion | Received a hallucinogenic algorithm 4134 | -6/Zion | Gained Derelict followers 4437 | -6/Zion | Gained Derelict followers 4472 | -6/Zion | Build established: Mutant 4846 | -6/Zion | Visited the Megawrench Repair Shop 4846 | -6/Zion | Megawrench repaired 9 parts 4882 | -6/Zion | Imprinted 4884 | -6/Zion | Declared Zion's savior 5028 | -6/Zion | Identified exit to Proximity Caves 5263 | -6/Zion | Entered Proximity Caves 5263 | -5/Proximity Caves | Accompanied by 9 allies 5268 | -5/Proximity Caves | Spotted B-75 Beast 5280 | -5/Proximity Caves | Build established: Derelict-Sprinter 5662 | -5/Proximity Caves | Build established: Derelict-Mutant 5742 | -5/Proximity Caves | Learned Factory security intel 5744 | -5/Proximity Caves | Discovered exit to Factory (range 12) 5918 | -5/Proximity Caves | Entered Factory 5918 | -5/Factory | Accompanied by 4 allies 5918 | -5/Factory | Evolved 2 slots: Utility x2 5920 | -5/Factory | Loaded intel: 4 garrison access locations 6040 | -5/Factory | Fabricated Force Lance (x1) 6315 | -5/Factory | Retrieved Zion intel report: Branch Access 6315 | -5/Factory | Identified exit to Upper Caves 6315 | -5/Factory | Identified exit to Extension 6316 | -5/Factory | Zion Heavy squad teleported in 6414 | -5/Factory | Found Prototype Protection 6414 | -5/Factory | Identified Zio. Weapon Casing 6441 | -5/Factory | Lost 6 parts (1p3n2w) 6495 | -5/Factory | Retrieved Zion intel report: Depthwide Sectors/-1 6502 | -5/Factory | Discovered new exit (range 16) 6510 | -5/Factory | Retrieved Zion intel report: Emergency Access 6538 | -5/Factory | Retrieved Zion intel report: Active Garrisons 6565 | -5/Factory | Retrieved Zion intel report: Active Terminals 6611 | -5/Factory | Core integrity fell below 50% 6618 | -5/Factory | Entered Upper Caves 6625 | -5/Upper Caves | Core integrity fell below 20% 6648 | -5/Upper Caves | Lost 15 parts (1p7n6u1w) 6654 | -5/Upper Caves | Learned Factory terminal intel 6678 | -5/Upper Caves | Attracted the attention of an 0b10 checkpoint 6705 | -5/Upper Caves | Discovered new exit (range 7) 6708 | -5/Upper Caves | Identified exit to Upper Caves 6708 | -5/Upper Caves | Entered another Upper Caves area 6716 | -5/Upper Caves | Destroyed by S-27 Virus with Autogun Last Messages --------------- Data stored: Factory terminal intel. 06671_ Connecting with WAR.Sys... >>Open Door Sealed Heavy Doors opened. 06674_ Acquired Mak. Kinetic Plating. 06676_ System corrupted: Energy discharge (-23). 06680_ Slug penetrates Wall. 06682_ Imp. Surge Thruster destroyed. 06687_ Searching scrap... 06687_ Found Adv. Drone Bay. 06687_ Found Recoil Stabilizer. 06687_ Found Stasis Canceller. 06687_ Found 25 Matter. 06688_ Acquired 15 matter. 06705_ EXIT=FOUND 06708_ EXIT=IDENTIFIED: UPPER CAVES LOCATION=UPPER CAVES GOAL=ESCAPE 06716_ Slug penetrates Wall. Map ----- +----------------------------------------------------+ | ?????????????????????????????????????????????????? | | ?????????????????????????????????????????????????? | | ?????????????????????????????????????????????????? | | ?????????????????????????????????????????????????? | | ?????????????????????????????????????????????????? | | ?????????????????????????????????????????????????? | | ?????????????????????????????????????????????????? | | ?????????????????????????????????????????????????? | | ?????????????????????????????????????????????????? | | ?????????????????????????????????????????????????? | | ?????????????????????????????????????????????????? | | ?????????????????????????????????????????????????? | | ????????????????????????????????##???????????????? | | ????????????????????????###????# ##??????????????? | | ????????????????????????? #### #??????????????? | | ?????????????????????????? ##???###???????? | | ?????????????????????????? #??## ##??????? | | ??????????????????????????? ??## ##?????? | | ???????????????????????????# ??## #?????? | | ???????????????????????????# #??## ##????? | | ???????????????????????????# #??## ##???? | | ???????????????????????????# #??# | | ??????????????????????????## #### ## | | ???????????????????????#### sss### #### | | ?????????????????????### s ## ##???? | | ?????????????????????# @ ## ##?????? | | ??????????????# ### #####??????? | | ??????????????# ### ##?# #??????????? | | ??????????????# #### ## #?###?? #??????????? | | ???????????????????#??# ?????? #??????????? | | ????????????????????? ?????? ??????????? | | ???????????????????? ?????## #?????????? | | ??????????????????? = ??????# ##?????????? | | ?????????????????? !%! ?????? ###??????????? | | ?????????????????#### ! ?????? #????????????? | | ????????????????????# ????? ????????????? | | ????????????????????# ????? ????????????? | | ???????????????????? ?????## ????????????? | | ???????????????????? ???????# ????????????? | | ????????????????????? ?????????????????????? | | ??????????????????????? #?????????????????????? | | ?????????????????????????????????????????????????? | | ?????????????????????????????????????????????????? | | ?????????????????????????????????????????????????? | | ?????????????????????????????????????????????????? | | ?????????????????????????????????????????????????? | | ?????????????????????????????????????????????????? | | ?????????????????????????????????????????????????? | | ?????????????????????????????????????????????????? | | ?????????????????????????????????????????????????? | +----------------------------------------------------+ Best States ------------- Heat Dissipation 64 Energy Generation 29 Energy Capacity 750 Matter Stores 329 Matter Capacity 550 Sight Range 16 Robot Scan Range 15 Terrain Scan Density 10 Additional Mass Support 9 Armor Coverage 450 Utility Shielding 66 Evasion (%) 66 Targeting Accuracy 6 Recoil Reduction 4 Offensive Hacking 30 Item Schematics ----------------- Combat Drone Bay | -7/Data Miner | Free Lgt. Regenerative Plating | -7/Data Miner | Free Cld. Aerolev Unit | -7/Data Miner | Free Gravity Neutralizer | -7/Data Miner | Free Com. Ion Cannon | -7/Data Miner | Free Gyrokinetic Inverter | -7/Data Miner | Free Point Defense System | -7/Data Miner | Free KE Penetrator | -7/Data Miner | Free Fusion Compressor | -6/Zion | Archive Lgt. Fission Core | -6/Zion | Archive Hyp. Gauss Cannon | -6/Zion | Archive Phase Gun | -6/Zion | Archive Adv. Shield Generator | -6/Zion | Archive Arc Thrower | -6/Zion | Archive Adv. Drone Bay | -6/Zion | Archive Fission Core | -6/Zion | Archive Dispersion Rifle | -6/Zion | Archive Power Sword | -6/Zion | Archive Tesla Rifle | -6/Zion | Archive Focal Shield | -6/Zion | Archive Hvy. Machine Gun | -6/Zion | Archive Robot Schematics ------------------ M-14 Sweeper | -7/Data Miner | Free A-15 Conveyor | -7/Data Miner | Free C-17 Slicer | -7/Data Miner | Free L-41 Fighter | -7/Data Miner | Free G-50 Soldier | -7/Data Miner | Free T-07 Excavator | -6/Zion | Archive Y-54 Guardian | -6/Zion | Archive D-83 Annihilator | -6/Zion | Archive Fabricated ------------ Force Lance | x1 | -5/Factory | Preloaded Alien Tech Used ----------------- None Achievements -------------- None Challenges ------------ None Game ------ Seed LobotomyPotentialFragment Manual? 0 Play Time 01:03:12 Cumulative 642.0 hours Start 2023.10.12 @ 18:57:30 End 2023.10.12 @ 21:27:12 Sessions 3 Manual Loads 0 Difficulty Rogue Special Mode None Game No. 562 Rogue 347 Adventurer 112 Explorer 103 Win Type - Total 42 Types 26/0/8/3/0/0/4/1/0 Lore% 85 Gallery% 91 Achievement% 82 Wizard Run 0 Options --------- ASCII 1 Keyboard 1 Movement Vi Keybinds 1 Fullscreen 2 Font 18/TerminusBold Map View 66x52 Tactical HUD 1 Map Filters NONE Filters NONE Steam 0 RUN: caf3e112-b583-4d50-a36e-d3a0395dbc74